bitfinex-derivatives/quotes_ETHF0:USTF0_20210107
["timestamp","ask_amount","ask_price","bid_price","bid_amount"]
[1610002497538,4.00959,1196.1,1195.8,10.0]
[1610002497742,4.00959,1196.1,1196.0,10.0]
[1610002498140,4.00959,1196.1,1195.8,10.0]
[1610002498440,4.00959,1196.1,1196.0,10.0]
[1610002498740,4.00959,1196.1,1195.8,10.0]
[1610002499039,4.00959,1195.9,1195.8,14.00959]
[1610002499641,4.00959,1195.9,1195.8,24.00959]
[1610002500242,4.00959,1195.9,1195.8,20.0]
[1610002501142,4.00959,1195.9,1195.8,24.00959]
[1610002502644,4.00959,1195.9,1195.8,20.0]
[1610002508449,18.00959,1195.9,1195.8,20.0]
[1610002509149,22.01918,1195.9,1195.8,24.00959]
[1610002509448,4.00959,1195.9,1195.8,24.00959]
[1610002510249,18.00959,1196.2,1195.8,24.00959]
[1610002510649,18.00959,1196.2,1195.9,10.0]
[1610002510851,18.00959,1196.2,1195.8,14.00959]
[1610002511150,4.00959,1196.1,1196.0,14.00959]
[1610002511348,4.00959,1196.1,1196.0,4.00959]
[1610002511648,4.00959,1196.1,1196.0,14.00959]
[1610002512150,74.451,1196.3,1196.0,14.00959]
[1610002512351,70.777,1196.3,1196.0,14.00959]
[1610002512655,70.777,1196.3,1196.1,10.0]
[1610002512950,70.777,1196.3,1196.2,10.0]
[1610002513249,52.408,1196.3,1196.2,14.00959]
[1610002513450,52.408,1196.3,1196.2,4.00959]
[1610002513653,52.408,1196.3,1196.2,14.00959]
[1610002513950,52.408,1196.3,1196.2,16.71409]
[1610002514552,4.00959,1196.7,1196.2,16.71409]
[1610002514952,4.00959,1196.7,1196.3,10.0]
[1610002515252,4.00959,1196.7,1196.6,4.00959]
[1610002515453,4.00959,1196.7,1196.6,7.01209]
[1610002515654,4.00959,1196.7,1196.6,17.01209]
[1610002516854,4.00959,1196.7,1196.6,13.0025]
[1610002518358,4.00959,1196.7,1196.6,81.2018]
[1610002519560,4.00959,1196.7,1196.6,13.0025]
[1610002521564,22.01918,1196.7,1196.6,13.0025]
[1610002526768,4.00959,1196.7,1196.6,13.0025]
[1610002527668,18.00959,1197.0,1196.6,13.0025]
[1610002527869,7.377,1197.1,1196.6,13.0025]
[1610002528069,7.377,1197.1,1196.7,10.0]
[1610002528370,7.377,1197.1,1196.8,10.0]
[1610002528668,18.00959,1197.3,1196.6,3.0025]
[1610002528870,18.00959,1197.3,1196.9,10.0]
[1610002529270,18.00959,1197.3,1196.6,3.0025]
[1610002529471,4.00959,1196.9,1196.7,4.00959]
[1610002529773,4.00959,1196.9,1196.7,14.00959]
[1610002529973,4.00959,1196.9,1196.8,10.0]
[1610002530583,20.15829,1197.4,1196.8,10.0]
[1610002530872,20.15829,1197.4,1196.9,10.0]
[1610002531172,2.1487,1197.4,1196.9,10.0]
[1610002531373,4.00959,1197.0,1196.7,14.00959]
[1610002531674,4.00959,1197.0,1196.7,4.00959]
[1610002531874,4.00959,1197.0,1196.8,10.0]
[1610002532173,4.00959,1197.0,1196.9,10.0]
[1610002532673,4.00959,1197.0,1196.8,10.0]
[1610002532973,4.00959,1197.0,1196.7,4.00959]
[1610002532974,4.00959,1197.0,1196.9,10.0]
[1610002533474,4.00959,1197.0,1196.8,10.0]
[1610002533675,4.00959,1197.0,1196.7,4.00959]
[1610002533875,4.00959,1197.0,1196.9,10.0]
[1610002534074,4.00959,1197.0,1196.8,10.0]
[1610002534276,4.00959,1197.0,1196.7,4.00959]
[1610002534477,4.00959,1197.0,1196.9,10.0]
[1610002534777,4.00959,1197.0,1196.8,10.0]
[1610002534979,4.00959,1197.0,1196.7,4.00959]
[1610002535277,4.00959,1197.0,1196.9,10.0]
[1610002535477,4.00959,1197.0,1196.8,10.0]
[1610002535678,4.00959,1197.0,1196.7,4.00959]
[1610002535879,4.00959,1197.0,1196.9,10.0]
[1610002536380,4.00959,1197.0,1196.8,10.0]
[1610002536680,4.00959,1197.0,1196.9,10.0]
[1610002539495,4.00959,1197.0,1196.9,68.9458]
[1610002545494,4.00959,1197.0,1196.9,72.95539]
[1610002546496,4.00959,1197.0,1196.9,65.02739]
[1610002550702,4.00959,1197.0,1196.9,61.0178]
[1610002553502,4.00959,1197.0,1196.9,65.02739]
[1610002555902,4.00959,1197.0,1196.9,74.79649]
[1610002556204,4.00959,1197.0,1196.9,21.08809]
[1610002559103,4.00959,1197.0,1196.9,23.90419]
[1610002559502,3.674,1197.5,1196.9,23.90419]
[1610002559702,7.68359,1197.5,1197.2,4.00959]
[1610002560206,7.68359,1197.5,1197.3,10.0]
[1610002560606,7.68359,1197.5,1197.4,10.0]
[1610002561608,3.674,1197.5,1197.4,10.0]
[1610002561913,7.68359,1197.5,1197.4,10.0]
[1610002562409,3.674,1197.5,1197.4,10.0]
[1610002563814,3.674,1197.5,1197.4,14.00959]
[1610002565813,7.68359,1197.5,1197.4,14.00959]
[1610002566413,3.674,1197.5,1197.4,14.00959]
[1610002568915,6.7563,1198.0,1197.5,6.326]
[1610002569115,3.0823,1198.0,1197.5,16.326]
[1610002569315,3.0823,1198.0,1197.6,10.0]
[1610002569717,3.0823,1198.0,1197.7,10.0]
[1610002570017,3.0823,1198.0,1197.8,10.0]
[1610002570517,3.0823,1198.0,1197.9,10.0]
[1610002570818,3.0823,1198.0,1197.5,6.326]
[1610002571218,3.0823,1198.0,1197.6,10.0]
[1610002571519,3.0823,1198.0,1197.7,10.0]
[1610002571719,4.00959,1197.8,1197.7,10.0]
[1610002571919,4.00959,1197.8,1197.6,4.00959]
[1610002572220,4.00959,1197.8,1197.7,10.0]
[1610002574723,4.00959,1197.8,1197.7,73.9364]
[1610002575522,3.0823,1198.0,1197.8,5.99041]
[1610002575821,4.00959,1198.0,1197.9,4.00959]
[1610002576425,4.00959,1198.0,1197.9,14.00959]
[1610002584335,4.00959,1198.0,1197.9,10.0]
[1610002589139,20.62049,1198.2,1197.9,10.0]
[1610002589438,2.6109,1198.2,1198.0,10.0]
[1610002589641,2.6109,1198.2,1197.9,10.0]
[1610002589838,18.00959,1198.5,1197.9,10.0]
[1610002590042,4.00959,1198.0,1197.8,5.99041]
[1610002590238,4.00959,1198.0,1197.9,10.0]
[1610002590539,22.01918,1198.0,1197.9,10.0]
[1610002593642,2.399,1198.2,1198.0,7.98082]
[1610002593845,2.399,1198.2,1198.0,17.98082]
[1610002594045,4.00959,1198.1,1198.0,17.98082]
[1610002594245,4.00959,1198.1,1198.0,7.98082]
[1610002594644,4.00959,1198.1,1198.0,17.98082]
[1610002596147,34.00959,1198.1,1198.0,17.98082]
[1610002596646,34.00959,1198.1,1198.0,14.85812]
[1610002601656,34.00959,1198.1,1198.0,5.05722]
[1610002603259,34.00959,1198.1,1197.8,5.99041]
[1610002603559,34.00959,1198.1,1197.9,10.0]
[1610002603861,4.00959,1198.1,1198.0,10.0]
[1610002604362,4.00959,1198.1,1197.9,10.0]
[1610002604561,4.00959,1198.1,1198.0,10.0]
[1610002604963,2.399,1198.2,1197.9,10.0]
[1610002605163,4.00959,1198.5,1197.9,10.0]
[1610002605363,4.00959,1198.5,1198.1,10.0]
[1610002605663,4.00959,1198.5,1197.8,5.99041]
[1610002605868,7.13319,1198.5,1198.2,10.0]
[1610002606063,4.00959,1198.3,1198.2,10.0]
[1610002606363,4.00959,1198.3,1197.8,5.99041]
[1610002606562,4.00959,1198.3,1198.2,10.0]
[1610002607065,8.01918,1198.3,1198.2,10.0]
[1610002611973,4.00959,1198.3,1198.2,10.0]
[1610002612176,3.1236,1198.5,1198.3,25.99041]
[1610002612469,3.674,1198.6,1198.3,25.99041]
[1610002612668,3.674,1198.6,1198.3,35.99041]
[1610002612872,39.697,1198.6,1198.3,35.99041]
[1610002613069,36.023,1198.6,1198.4,10.0]
[1610002613370,36.023,1198.6,1198.5,10.0]
[1610002613570,36.023,1198.6,1198.3,25.99041]
[1610002613770,36.023,1198.6,1198.4,10.0]
[1610002614070,4.00959,1198.5,1198.4,10.0]
[1610002614270,4.00959,1198.5,1198.3,25.99041]
[1610002614571,4.00959,1198.5,1198.4,10.0]
[1610002615974,36.023,1198.6,1198.5,25.99041]
[1610002616173,40.03259,1198.6,1198.5,25.99041]
[1610002616373,40.03259,1198.6,1198.5,35.99041]
[1610002618475,10.03259,1198.6,1198.5,35.99041]
[1610002618676,4.00959,1198.6,1198.5,35.99041]
[1610002619177,34.00959,1198.6,1198.5,35.99041]
[1610002621380,4.00959,1198.6,1198.5,35.99041]
[1610002621679,6.57869,1198.6,1198.5,35.99041]
[1610002628481,6.57869,1198.6,1198.5,23.09851]
[1610002629082,6.57869,1198.6,1198.3,25.31212]
[1610002629484,57.4595,1198.5,1198.4,10.0]
[1610002629684,57.4595,1198.5,1198.3,25.31212]
[1610002630083,57.4595,1198.5,1198.4,10.0]
[1610002637092,27.4595,1198.5,1198.4,10.0]
[1610002649904,6.57869,1198.6,1198.4,10.0]
[1610002650202,6.57869,1198.6,1198.5,10.0]
[1610002650603,6.57869,1198.6,1198.4,10.0]
[1610002650903,6.57869,1198.6,1198.5,10.0]
[1610002651304,6.57869,1198.6,1198.4,10.0]
[1610002651604,6.57869,1198.6,1198.5,10.0]
[1610002651904,6.57869,1198.6,1198.3,25.31212]
[1610002652207,6.57869,1198.6,1198.4,10.0]
[1610002652807,6.57869,1198.6,1198.5,10.0]
[1610002653107,6.57869,1198.6,1198.4,10.0]
[1610002653409,6.57869,1198.6,1198.5,10.0]
[1610002658213,36.57869,1198.6,1198.5,10.0]
[1610002662918,6.57869,1198.6,1198.5,10.0]
[1610002668229,36.57869,1198.6,1198.5,10.0]
[1610002668824,98.25549,1198.6,1198.5,10.0]
[1610002671428,68.25549,1198.6,1198.5,10.0]
[1610002673442,98.25549,1198.6,1198.5,10.0]
[1610002675332,68.25549,1198.6,1198.5,10.0]
[1610002676834,98.25549,1198.6,1198.5,10.0]
[1610002678037,36.57869,1198.6,1198.5,10.0]
[1610002687449,92.30399,1198.6,1198.5,10.0]
[1610002691958,128.32699,1198.6,1198.5,10.0]
[1610002696761,72.60169,1198.6,1198.5,10.0]
[1610002698566,68.5921,1198.6,1198.5,10.0]
[1610002699166,72.60169,1198.6,1198.5,10.0]
[1610002702473,72.60169,1198.6,1198.3,25.31212]
[1610002702772,72.60169,1198.6,1198.4,10.0]
[1610002703172,72.60169,1198.6,1198.5,10.0]
[1610002703472,72.60169,1198.6,1198.3,25.31212]
[1610002703772,72.60169,1198.6,1198.4,10.0]
[1610002704072,72.60169,1198.6,1198.5,10.0]
[1610002704473,72.60169,1198.6,1198.3,25.31212]
[1610002704772,72.60169,1198.6,1198.4,10.0]
[1610002705174,72.60169,1198.6,1198.3,25.31212]
[1610002705373,72.60169,1198.6,1198.5,10.0]
[1610002710077,72.60169,1198.6,1198.3,25.31212]
[1610002710379,72.60169,1198.6,1198.4,10.0]
[1610002710680,72.60169,1198.6,1198.5,10.0]
[1610002710978,42.60169,1198.6,1198.5,10.0]
[1610002711979,40.03259,1198.6,1198.5,10.0]
[1610002716081,42.70089,1198.6,1198.5,10.0]
[1610002722797,12.70089,1198.6,1198.5,10.0]
[1610002722998,6.67789,1198.6,1198.5,10.0]
[1610002732111,47.6291,1198.9,1198.6,23.32211]
[1610002732511,47.6291,1198.9,1198.6,33.32211]
[1610002732813,47.6291,1198.9,1198.7,10.0]
[1610002733315,47.6291,1198.9,1198.8,10.0]
[1610002733615,51.63869,1198.9,1198.7,10.0]
[1610002733817,54.37749,1198.9,1198.7,10.0]
[1610002734115,54.37749,1198.9,1198.6,23.32211]
[1610002734116,54.37749,1198.9,1198.8,10.0]
[1610002734314,54.37749,1198.9,1198.7,10.0]
[1610002734615,54.13169,1198.9,1198.8,10.0]
[1610002735014,54.13169,1198.9,1198.7,10.0]
[1610002735515,54.13169,1198.9,1198.8,10.0]
[1610002735715,54.13169,1198.9,1198.7,10.0]
[1610002736017,84.13169,1198.9,1198.7,10.0]
[1610002736216,84.13169,1198.9,1198.8,10.0]
[1610002736918,54.13169,1198.9,1198.8,10.0]
[1610002738217,84.13169,1198.9,1198.8,10.0]
[1610002739424,54.13169,1198.9,1198.8,10.0]
[1610002744027,6.74839,1198.9,1198.8,10.0]
[1610002749634,6.74839,1198.9,1198.8,65.0408]
[1610002751636,22.043,1199.6,1198.9,23.25161]
[1610002751837,4.00959,1199.0,1198.9,23.25161]
[1610002752037,4.00959,1199.0,1198.9,33.25161]
[1610002752236,6.97569,1199.0,1198.9,33.25161]
[1610002755939,22.043,1199.6,1199.0,23.02431]
[1610002756139,58.066,1199.6,1199.0,23.02431]
[1610002756339,58.066,1199.6,1199.0,33.02431]
[1610002756541,58.066,1199.6,1199.1,10.0]
[1610002756840,58.066,1199.6,1199.2,10.0]
[1610002757040,50.689,1199.6,1199.2,10.0]
[1610002757340,50.689,1199.6,1199.3,10.0]
[1610002757539,50.689,1199.6,1199.0,23.02431]
[1610002757742,53.6741,1199.6,1199.4,10.0]
[1610002757940,50.0001,1199.6,1199.4,10.0]
[1610002758140,50.0001,1199.6,1199.1,10.0]
[1610002758340,39.0081,1199.6,1199.5,10.0]
[1610002758541,20.0001,1199.6,1199.5,10.0]
[1610002758742,2.9851,1199.6,1199.5,10.0]
[1610002758942,2.9851,1199.6,1199.0,23.02431]
[1610002759147,2.9851,1199.6,1199.3,10.0]
[1610002759542,2.9851,1199.6,1199.1,10.0]
[1610002759743,4.00959,1199.2,1199.0,23.02431]
[1610002760244,7.20279,1199.2,1199.1,10.0]
[1610002761545,2.9851,1199.6,1199.2,22.79721]
[1610002761848,4.00959,1199.3,1199.2,20.30281]
[1610002762045,6.59359,1199.3,1199.2,20.30281]
[1610002762345,6.59359,1199.3,1199.2,10.30281]
[1610002762948,36.59359,1199.3,1199.0,23.02431]
[1610002763246,36.59359,1199.3,1199.2,10.0]
[1610002763447,36.59359,1199.3,1199.0,23.02431]
[1610002763947,4.00959,1199.1,1199.0,23.02431]
[1610002768155,2.584,1199.3,1199.1,25.99041]
[1610002768356,30.0,1199.5,1199.1,25.99041]
[1610002768755,30.0,1199.5,1199.2,10.0]
[1610002769157,30.0,1199.5,1199.1,35.99041]
[1610002769355,30.0,1199.5,1199.1,25.99041]
[1610002769555,30.0,1199.5,1199.3,10.0]
[1610002770056,4.00959,1199.3,1199.2,10.0]
[1610002770360,4.00959,1199.3,1199.1,25.99041]
[1610002770556,6.71859,1199.3,1199.1,25.99041]
[1610002770756,6.71859,1199.3,1199.2,10.0]
[1610002772056,36.71859,1199.3,1199.2,10.0]
[1610002774767,36.71859,1199.3,1199.1,20.31751]
[1610002774968,36.71859,1199.3,1199.1,1.41941]
[1610002775168,36.71859,1199.3,1199.0,23.02431]
[1610002775968,4.00959,1199.1,1199.0,23.02431]
[1610002776168,34.00959,1199.1,1199.0,23.02431]
[1610002776568,34.00959,1199.1,1199.0,11.80361]
[1610002776769,34.00959,1199.1,1198.9,23.25161]
[1610002777368,34.00959,1199.1,1199.0,10.0]
[1610002781574,4.00959,1199.1,1198.9,23.25161]
[1610002782275,4.00959,1199.1,1198.9,17.10801]
[1610002783376,4.00959,1199.1,1198.9,1.26381]
[1610002783575,4.00959,1199.1,1196.9,6.63649]
[1610002784080,2.709,1199.3,1199.1,25.99041]
[1610002784280,4.00959,1199.1,1197.2,6.01719]
[1610002784491,4.00959,1199.1,1199.0,10.0]
[1610002784884,4.00959,1199.2,1198.7,10.0]
[1610002785281,4.00959,1199.2,1198.8,10.0]
[1610002785582,4.00959,1199.2,1197.2,6.01719]
[1610002785781,6.12209,1199.2,1198.9,10.0]
[1610002786181,6.12209,1199.2,1198.7,10.0]
[1610002786381,4.00959,1198.8,1197.2,6.01719]
[1610002786681,4.00959,1198.8,1198.7,10.0]
[1610002791286,2.1125,1199.2,1198.8,25.99041]
[1610002791586,49.5928508,1199.6,1198.8,25.99041]
[1610002791986,49.5928508,1199.6,1198.8,35.99041]
[1610002792287,49.5928508,1199.6,1198.9,10.0]
[1610002792487,4.00959,1199.0,1198.8,25.99041]
[1610002792887,4.00959,1199.0,1198.9,10.0]
[1610002795389,34.00959,1199.0,1198.9,10.0]
[1610002795891,34.00959,1199.0,1198.8,25.99041]
[1610002796192,57.0137,1198.9,1198.8,2.96221]
[1610002796391,87.0137,1198.9,1198.8,2.96221]
[1610002796592,57.0137,1198.9,1198.8,2.96221]
[1610002797092,57.0137,1198.9,1197.4,63.4286]
[1610002797594,57.0137,1198.9,1198.6,19.71791]
[1610002798396,68.34460586,1198.9,1198.6,19.71791]
[1610002798696,4.00959,1198.7,1198.6,19.71791]
[1610002801296,4.00959,1198.7,1198.6,1.95081]
[1610002801496,4.00959,1198.7,1197.4,63.4286]
[1610002801896,11.33090586,1198.9,1197.4,63.4286]
[1610002802598,4.00959,1197.9,1197.4,63.4286]
[1610002803599,5.72459,1197.9,1197.4,63.4286]
[1610002804604,4.00959,1197.6,1197.4,63.4286]
[1610002805800,6.08189,1197.6,1197.4,63.4286]
[1610002809204,6.08189,1197.6,1197.5,16.326]
[1610002823126,4.00959,1197.6,1197.5,16.326]
[1610002824728,4.00959,1197.6,1197.5,46.326]
[1610002824930,4.00959,1197.6,1197.5,48.9589]
[1610002825530,52.6768,1198.1,1197.5,48.9589]
[1610002826031,52.6768,1198.1,1197.6,10.0]
[1610002826232,52.6768,1198.1,1197.7,40.0]
[1610002826730,52.6768,1198.1,1198.0,4.00959]
[1610002827134,3.674,1198.4,1198.0,44.00959]
[1610002827533,3.674,1198.4,1198.1,10.0]
[1610002827732,3.674,1198.4,1198.2,30.0]
[1610002827932,3.674,1198.4,1198.2,40.0]
[1610002828331,3.674,1198.4,1198.3,10.0]
[1610002828633,3.674,1199.0,1198.9,4.00959]
[1610002829533,3.674,1199.0,1198.9,44.00959]
[1610002830134,3.674,1199.0,1198.9,46.34089]
[1610002830432,3.674,1199.0,1198.9,16.34089]
[1610002830833,4.00959,1199.2,1198.9,16.34089]
[1610002831535,4.00959,1199.2,1198.9,12.3313]
[1610002831935,4.00959,1199.2,1198.9,10.0]
[1610002832336,4.00959,1199.2,1199.0,30.0]
[1610002833638,4.00959,1199.2,1199.0,40.0]
[1610002834039,18.369,1199.5,1199.2,25.99041]
[1610002834538,18.369,1199.5,1199.3,10.0]
[1610002834738,4.00959,1199.4,1199.3,10.0]
[1610002835139,4.00959,1199.4,1199.2,25.99041]
[1610002836338,18.369,1199.5,1199.4,25.99041]
[1610002836537,18.369,1199.5,1199.4,35.99041]
[1610002836739,22.37859,1199.5,1199.4,35.99041]
[1610002836939,22.37859,1199.5,1199.4,25.99041]
[1610002837340,22.37859,1199.5,1199.4,35.99041]
[1610002838341,2.7349,1199.6,1199.5,7.62141]
[1610002838546,2.7349,1199.6,1199.5,17.62141]
[1610002838843,6.74449,1199.6,1199.5,17.62141]
[1610002840542,53.4359,1200.2,1199.6,23.25551]
[1610002840743,4.00959,1199.7,1199.6,33.25551]
[1610002840943,5.95529,1199.7,1199.6,23.25551]
[1610002841444,5.95529,1199.7,1199.6,33.25551]
[1610002843945,53.4359,1200.2,1199.7,24.04471]
[1610002844245,53.4359,1200.2,1199.7,34.04471]
[1610002844545,53.4359,1200.2,1199.8,10.0]
[1610002844846,4.00959,1199.9,1199.7,24.04471]
[1610002845146,6.80359,1199.9,1199.7,24.04471]
[1610002845348,6.80359,1199.9,1199.8,10.0]
[1610002849853,50.5676,1200.1,1199.9,23.19641]
[1610002850053,86.5906,1200.1,1199.9,23.19641]
[1610002850855,4.00959,1200.0,1199.9,23.19641]
[1610002851153,6.06499,1200.0,1199.9,23.19641]
[1610002851356,42.08799,1200.0,1199.9,23.19641]
[1610002851654,42.08799,1200.0,1199.9,19.54901]
[1610002851954,42.08799,1200.0,1199.8,10.0]
[1610002852654,9.23064964,1199.9,1199.8,10.0]
[1610002852854,45.25364964,1199.9,1199.8,10.0]
[1610002853154,15.25364964,1199.9,1199.8,10.0]
[1610002853458,17.34575617,1200.0,1199.7,24.04471]
[1610002854656,11.28298422,1199.9,1199.7,24.04471]
[1610002854859,4.00959,1199.8,1199.7,24.04471]
[1610002855356,4.00959,1199.8,1199.6,23.25551]
[1610002856161,4.00959,1199.8,1199.6,7.34391]
[1610002856461,4.00959,1199.8,1199.5,7.62141]
[1610002856661,11.28298422,1199.9,1199.8,25.99041]
[1610002856861,15.29257422,1199.9,1199.8,15.09351]
[1610002857261,15.29257422,1199.9,1199.5,7.62141]
[1610002857960,15.29257422,1199.9,1199.8,10.0]
[1610002858161,15.29257422,1199.9,1199.5,7.62141]
[1610002858462,2.0554,1200.0,1199.9,14.70742578]
[1610002858761,36.023,1200.1,1199.9,14.70742578]
[1610002859061,4.00959,1200.0,1199.9,14.70742578]
[1610002859360,7.04009,1200.0,1199.5,7.62141]
[1610002860261,13.33640557,1199.8,1199.5,7.62141]
[1610002860861,4.00959,1199.6,1199.5,7.62141]
[1610002861163,6.81159,1199.6,1199.5,7.62141]
[1610002863363,6.81159,1199.6,1199.5,17.62141]
[1610002866569,13.33619245,1199.9,1199.6,25.99041]
[1610002866965,4.00959,1199.7,1199.6,35.99041]
[1610002867267,4.00959,1199.7,1199.6,25.99041]
[1610002867668,4.00959,1199.7,1199.6,35.99041]
[1610002868769,13.33619245,1199.9,1199.7,25.99041]
[1610002868969,17.34578245,1199.9,1199.7,40.0]
[1610002869272,17.34578245,1199.9,1199.8,10.0]
[1610002869769,4.00959,1199.9,1199.8,10.0]
[1610002871470,36.023,1200.1,1199.9,25.99041]
[1610002872474,36.023,1200.1,1199.9,35.99041]
[1610002872973,4.00959,1200.0,1199.9,35.99041]
[1610002873275,4.00959,1200.0,1199.9,25.99041]
[1610002873678,4.00959,1200.0,1199.9,35.99041]
[1610002877483,36.023,1200.1,1200.0,25.99041]
[1610002877782,36.023,1200.1,1200.0,35.99041]
[1610002878983,40.03259,1200.1,1200.0,40.0]
[1610002879584,40.03259,1200.1,1200.0,35.99041]
[1610002884993,53.36610853,1200.1,1200.0,35.99041]
[1610002887397,40.03259,1200.1,1200.0,35.99041]
[1610002889597,53.3656142,1200.1,1200.0,35.99041]
[1610002891600,40.03259,1200.1,1200.0,35.99041]
[1610002891900,53.36541469,1200.1,1200.0,35.99041]
[1610002892805,40.03259,1200.1,1200.0,35.99041]
[1610002893004,55.41751798,1200.1,1200.0,35.99041]
[1610002898309,40.03259,1200.1,1200.0,35.99041]
[1610002898809,55.41738376,1200.1,1200.0,35.99041]
[1610002899510,40.03259,1200.1,1200.0,35.99041]
[1610002900410,53.36606959,1200.1,1200.0,35.99041]
[1610002902716,23.36606959,1200.1,1200.0,35.99041]
[1610002902918,10.03259,1200.1,1200.0,35.99041]
[1610002903118,4.00959,1200.1,1200.0,35.99041]
[1610002912429,15.29134865,1200.1,1200.0,35.99041]
[1610002913429,4.00959,1200.1,1200.0,35.99041]
[1610002915032,15.29140199,1200.1,1200.0,35.99041]
[1610002916233,74.62342435,1200.3,1200.1,14.70859801]
[1610002916532,74.62342435,1200.3,1200.1,24.70859801]
[1610002917031,74.62342435,1200.3,1200.2,10.0]
[1610002917232,78.63301435,1200.3,1200.2,10.0]
[1610002918735,4.00959,1200.3,1200.2,10.0]
[1610002920836,15.38254008,1200.6,1200.3,25.99041]
[1610002921236,4.00959,1200.4,1200.3,25.99041]
[1610002921438,4.00959,1200.4,1200.3,35.99041]
[1610002921737,6.52679,1200.4,1200.3,35.99041]
[1610002924337,36.46649,1200.5,1200.3,35.99041]
[1610002924839,36.46649,1200.5,1200.4,10.0]
[1610002925244,40.47608,1200.5,1200.4,10.0]
[1610002926147,10.47608,1200.5,1200.4,10.0]
[1610002929654,4.00959,1200.5,1200.4,10.0]
[1610002930351,15.38101633,1200.7,1200.5,25.99041]
[1610002930551,15.38101633,1200.7,1200.5,35.99041]
[1610002930750,51.40401633,1200.7,1200.5,35.99041]
[1610002931050,51.40401633,1200.7,1200.6,10.0]
[1610002931253,55.41360633,1200.7,1200.6,10.0]
[1610002931453,40.03259,1200.7,1200.6,10.0]
[1610002931652,107.71989,1200.7,1200.6,10.0]
[1610002933457,71.69689,1200.7,1200.6,10.0]
[1610002934960,89.12901334,1200.7,1200.6,10.0]
[1610002936661,73.71339,1200.7,1200.6,10.0]
[1610002940366,43.71339,1200.7,1200.6,10.0]
[1610002941065,2.0165,1200.7,1200.6,10.0]
[1610002941568,6.02609,1200.7,1200.6,10.0]
[1610002942868,6.02609,1200.7,1200.5,25.99041]
[1610002943266,6.02609,1200.7,1200.5,14.59901]
[1610002943667,6.02609,1200.7,1200.3,25.99041]
[1610002943668,19.4885569,1200.6,1200.3,25.99041]
[1610002944072,19.48796658,1200.5,1200.3,25.99041]
[1610002945372,19.48796658,1200.5,1200.4,10.0]
[1610002945571,23.49755658,1200.5,1200.4,10.0]
[1610002948477,4.00959,1200.5,1200.3,25.99041]
[1610002948677,4.00959,1200.5,1200.3,16.44011]
[1610002948978,4.00959,1200.5,1200.4,10.0]
[1610002949778,22.53279201,1200.7,1200.5,25.99041]
[1610002950582,22.53279201,1200.7,1200.6,10.0]
[1610002950981,22.53279201,1200.7,1200.5,17.20701]
[1610002951484,4.00959,1200.6,1200.5,17.20701]
[1610002952684,4.00959,1200.6,1200.5,27.20701]
[1610002955385,25.21585022,1201.3,1200.7,3.45761799]
[1610002955585,4.00959,1200.8,1200.7,3.45761799]
[1610002955785,4.00959,1200.8,1200.6,10.0]
[1610002956086,4.00959,1200.8,1200.7,10.0]
[1610002956488,4.00959,1200.8,1200.5,17.20701]
[1610002956686,4.00959,1200.8,1200.6,10.0]
[1610002957088,4.00959,1200.8,1200.7,10.0]
[1610002957488,4.00959,1200.8,1200.5,17.20701]
[1610002957688,4.00959,1200.6,1200.5,17.20701]
[1610002958087,1.6447,1201.2,1200.8,25.99041]
[1610002958387,25.21585022,1201.3,1200.8,0.42171]
[1610002958787,25.21585022,1201.3,1200.5,17.20701]
[1610002959090,27.47335022,1201.3,1200.5,17.20701]
[1610002959288,9.41986289,1201.1,1200.5,17.20701]
[1610002959488,54.3971,1200.7,1200.5,17.20701]
[1610002959688,4.00959,1200.6,1200.5,17.20701]
[1610002959989,6.82229,1200.6,1200.5,12.07731682]
[1610002961892,21.54984103,1201.0,1200.5,12.07731682]
[1610002962093,21.54984103,1201.0,1200.9,10.0]
[1610002962293,21.54984103,1201.0,1200.5,22.07731682]
[1610002962492,21.54984103,1201.0,1200.5,12.07731682]
[1610002962793,21.54984103,1201.0,1200.6,10.0]
[1610002962995,21.54984103,1201.0,1200.7,10.0]
[1610002963395,21.54984103,1201.0,1200.8,10.0]
[1610002963595,4.00959,1200.6,1200.5,12.07731682]
[1610002963996,4.00959,1200.6,1200.5,22.07731682]
[1610002964799,6.04789,1200.6,1200.5,22.07731682]
[1610002966298,17.80736352,1201.2,1201.0,2.40226897]
[1610002966599,53.83036352,1201.2,1200.6,10.0]
[1610002966900,48.9128,1201.0,1200.7,10.0]
[1610002967101,84.9358,1201.0,1200.7,10.0]
[1610002967301,84.9358,1201.0,1200.6,10.0]
[1610002967499,84.9358,1201.0,1200.8,10.0]
[1610002967800,4.00959,1200.9,1200.8,10.0]
[1610002968001,40.03259,1200.9,1200.5,12.07731682]
[1610002968300,52.02351308,1200.9,1200.6,10.0]
[1610002968501,52.02351308,1200.9,1200.3,16.44011]
[1610002969905,4.00959,1200.4,1200.3,2.70811]
[1610002970107,6.75159,1200.4,1200.1,14.70859801]
[1610002971408,9.4200903,1200.3,1200.1,14.70859801]
[1610002971808,4.00959,1200.2,1200.1,14.70859801]